[Event "Early-Titled-Tuesday-Blitz-February-13-2024"]
[Site "Chess.com"]
[Date "2024.02.13"]
[Round "4"]
[White "GaiozNigalidze"]
[Black "ural58"]
[Result "1/2-1/2"]
[WhiteElo "2700"]
[BlackElo "2510"]
[TimeControl "180+1"]
[EndTime "8:45:26 PST"]
[Termination "Game drawn - insufficient material"]

1. e4 {[%clk 0:03:00.9]} 1... d5 {[%clk 0:02:59.4]} 2. exd5 {[%clk 0:02:58.3]}
2... Qxd5 {[%clk 0:02:59.5]} 3. Nc3 {[%clk 0:02:58.4]} 3... Qa5 {[%clk
0:02:59.5]} 4. d4 {[%clk 0:02:56.9]} 4... Nf6 {[%clk 0:02:59.5]} 5. Nf3 {[%clk
0:02:57.1]} 5... Nc6 {[%clk 0:02:59.6]} 6. h3 {[%clk 0:02:53.9]} 6... Ne4 {[%clk
0:02:58.8]} 7. d5 {[%clk 0:02:27.2]} 7... Nxc3 {[%clk 0:02:46.1]} 8. bxc3 {[%clk
0:02:26.8]} 8... Nd8 {[%clk 0:02:41]} 9. Bd2 {[%clk 0:02:18.9]} 9... e6 {[%clk
0:02:36]} 10. c4 {[%clk 0:02:16.7]} 10... Bb4 {[%clk 0:02:35.4]} 11. Be2 {[%clk
0:02:09.5]} 11... Bxd2+ {[%clk 0:02:34.6]} 12. Qxd2 {[%clk 0:02:09.7]} 12...
Qxd2+ {[%clk 0:02:34.6]} 13. Kxd2 {[%clk 0:02:09.1]} 13... c6 {[%clk 0:02:30]}
14. Rhe1 {[%clk 0:01:48]} 14... O-O {[%clk 0:02:27.5]} 15. d6 {[%clk 0:01:42.2]}
15... c5 {[%clk 0:02:27.4]} 16. Ne5 {[%clk 0:01:31.6]} 16... f6 {[%clk
0:02:23.5]} 17. Nd3 {[%clk 0:01:31.9]} 17... b6 {[%clk 0:02:20.5]} 18. Bf3
{[%clk 0:01:24.1]} 18... Bb7 {[%clk 0:02:20.6]} 19. Bxb7 {[%clk 0:00:59.6]}
19... Nxb7 {[%clk 0:02:20.6]} 20. Rxe6 {[%clk 0:00:59.7]} 20... Rad8 {[%clk
0:02:21.2]} 21. Re7 {[%clk 0:00:54]} 21... Rf7 {[%clk 0:02:13.3]} 22. Kc3 {[%clk
0:00:40.2]} 22... Nxd6 {[%clk 0:02:12.8]} 23. Rxf7 {[%clk 0:00:40.1]} 23... Kxf7
{[%clk 0:02:13.4]} 24. a4 {[%clk 0:00:39.2]} 24... Ne4+ {[%clk 0:01:50.6]} 25.
Kb2 {[%clk 0:00:38.9]} 25... Rd4 {[%clk 0:01:50.1]} 26. a5 {[%clk 0:00:39.4]}
26... Rxc4 {[%clk 0:01:48.9]} 27. axb6 {[%clk 0:00:39.8]} 27... axb6 {[%clk
0:01:48.4]} 28. Ra7+ {[%clk 0:00:40.7]} 28... Kg6 {[%clk 0:01:42.6]} 29. Rb7
{[%clk 0:00:35.4]} 29... Rd4 {[%clk 0:01:24.6]} 30. Rxb6 {[%clk 0:00:34.8]}
30... c4 {[%clk 0:01:24.7]} 31. Nf4+ {[%clk 0:00:28.7]} 31... Kf5 {[%clk
0:01:19]} 32. Ne6 {[%clk 0:00:22.4]} 32... c3+ {[%clk 0:01:18.2]} 33. Kb3 {[%clk
0:00:18.2]} 33... Rd1 {[%clk 0:01:17.6]} 34. g4+ {[%clk 0:00:12.6]} 34... Kg6
{[%clk 0:01:07.2]} 35. Rc6 {[%clk 0:00:10.2]} 35... Rb1+ {[%clk 0:00:58.4]} 36.
Kc4 {[%clk 0:00:10.2]} 36... Nxf2 {[%clk 0:00:56.4]} 37. Rc7 {[%clk 0:00:10.7]}
37... Nxh3 {[%clk 0:00:50.8]} 38. Rxg7+ {[%clk 0:00:10.4]} 38... Kh6 {[%clk
0:00:51]} 39. Rf7 {[%clk 0:00:09.1]} 39... Rf1 {[%clk 0:00:49.6]} 40. Kxc3
{[%clk 0:00:08.5]} 40... Ng5 {[%clk 0:00:45.2]} 41. Nd4 {[%clk 0:00:06.8]} 41...
Kg6 {[%clk 0:00:43]} 42. Rd7 {[%clk 0:00:03.9]} 42... Rf4 {[%clk 0:00:41.5]} 43.
Nf5 {[%clk 0:00:02.9]} 43... Rxg4 {[%clk 0:00:40.8]} 44. Ne7+ {[%clk 0:00:03.4]}
44... Kh5 {[%clk 0:00:39.6]} 45. Kd3 {[%clk 0:00:03.1]} 45... Nf3 {[%clk
0:00:37.1]} 46. Rd6 {[%clk 0:00:02.2]} 46... Kg5 {[%clk 0:00:30.7]} 47. Nd5
{[%clk 0:00:01.9]} 47... Ne5+ {[%clk 0:00:28.7]} 48. Ke2 {[%clk 0:00:02.4]}
48... Re4+ {[%clk 0:00:27.2]} 49. Kf1 {[%clk 0:00:03.1]} 49... Ng4 {[%clk
0:00:22.7]} 50. c3 {[%clk 0:00:02.7]} 50... h5 {[%clk 0:00:21.9]} 51. Rd8 {[%clk
0:00:02.2]} 51... Re5 {[%clk 0:00:18.6]} 52. c4 {[%clk 0:00:02]} 52... h4 {[%clk
0:00:17.1]} 53. Kg2 {[%clk 0:00:02.4]} 53... Ne3+ {[%clk 0:00:16.2]} 54. Nxe3
{[%clk 0:00:01.7]} 54... Rxe3 {[%clk 0:00:16.8]} 55. c5 {[%clk 0:00:02.4]} 55...
Rc3 {[%clk 0:00:16.7]} 56. Rd5+ {[%clk 0:00:03]} 56... f5 {[%clk 0:00:15.6]} 57.
Rd4 {[%clk 0:00:03.7]} 57... f4 {[%clk 0:00:15]} 58. Rd8 {[%clk 0:00:03.6]}
58... Rxc5 {[%clk 0:00:12.9]} 59. Rg8+ {[%clk 0:00:04.2]} 59... Kf5 {[%clk
0:00:12.6]} 60. Kh3 {[%clk 0:00:04.5]} 60... Ke4 {[%clk 0:00:12]} 61. Kxh4
{[%clk 0:00:03.7]} 61... f3 {[%clk 0:00:10.7]} 62. Re8+ {[%clk 0:00:03.3]} 62...
Kf4 {[%clk 0:00:10.5]} 63. Rf8+ {[%clk 0:00:04]} 63... Ke3 {[%clk 0:00:10.7]}
64. Kg3 {[%clk 0:00:04.2]} 64... Rg5+ {[%clk 0:00:08.7]} 65. Kh2 {[%clk
0:00:04.4]} 65... Rg6 {[%clk 0:00:09.1]} 66. Ra8 {[%clk 0:00:04.3]} 66... f2
{[%clk 0:00:07.3]} 67. Ra3+ {[%clk 0:00:04.9]} 67... Ke4 {[%clk 0:00:07.1]} 68.
Ra4+ {[%clk 0:00:05.2]} 68... Kd3 {[%clk 0:00:06.7]} 69. Ra3+ {[%clk 0:00:05.6]}
69... Kc4 {[%clk 0:00:06]} 70. Ra4+ {[%clk 0:00:06]} 70... Kd5 {[%clk
0:00:04.2]} 71. Ra5+ {[%clk 0:00:05.7]} 71... Ke4 {[%clk 0:00:04.8]} 72. Ra4+
{[%clk 0:00:05.8]} 72... Kf3 {[%clk 0:00:05]} 73. Ra3+ {[%clk 0:00:06.1]} 73...
Kg4 {[%clk 0:00:05.1]} 74. Kg2 {[%clk 0:00:05.6]} 74... Kh4+ {[%clk 0:00:04.4]}
75. Kxf2 {[%clk 0:00:05.5]} 75... Kg5 {[%clk 0:00:05.3]} 76. Kf3 {[%clk
0:00:05.7]} 76... Kh6 {[%clk 0:00:06.2]} 77. Ke2 {[%clk 0:00:06]} 77... Rg2+
{[%clk 0:00:05.9]} 78. Kf3 {[%clk 0:00:06]} 78... Rg5 {[%clk 0:00:06.4]} 79.
Ra6+ {[%clk 0:00:06.1]} 79... Rg6 {[%clk 0:00:04.5]} 80. Ra7 {[%clk 0:00:07]}
80... Rf6+ {[%clk 0:00:04.3]} 81. Kg4 {[%clk 0:00:07.4]} 81... Rg6+ {[%clk
0:00:05]} 82. Kh4 {[%clk 0:00:08]} 82... Rb6 {[%clk 0:00:05.8]} 83. Rc7 {[%clk
0:00:08.2]} 83... Rb4+ {[%clk 0:00:05.9]} 84. Kg3 {[%clk 0:00:08.9]} 84... Rb3+
{[%clk 0:00:06.3]} 85. Kg4 {[%clk 0:00:09.1]} 85... Rb4+ {[%clk 0:00:06.9]} 86.
Kf5 {[%clk 0:00:09.6]} 86... Rb5+ {[%clk 0:00:07.3]} 87. Ke4 {[%clk 0:00:10.1]}
87... Rb4+ {[%clk 0:00:07.4]} 88. Kd3 {[%clk 0:00:10.5]} 88... Rb6 {[%clk
0:00:08.1]} 89. Kc4 {[%clk 0:00:10.8]} 89... Rg6 {[%clk 0:00:08.7]} 90. Kd5
{[%clk 0:00:10.9]} 90... Kh5 {[%clk 0:00:09]} 91. Rh7+ {[%clk 0:00:10.1]} 91...
Kg5 {[%clk 0:00:09.6]} 92. Re7 {[%clk 0:00:11]} 92... Rf6 {[%clk 0:00:09.9]} 93.
Ke5 {[%clk 0:00:11.4]} 93... Rf5+ {[%clk 0:00:10.5]} 94. Ke4 {[%clk 0:00:11.6]}
94... Rf4+ {[%clk 0:00:11.2]} 95. Ke3 {[%clk 0:00:12.2]} 95... Rf6 {[%clk
0:00:11.6]} 96. Re5+ {[%clk 0:00:12]} 96... Rf5 {[%clk 0:00:11.1]} 97. Rxf5+
{[%clk 0:00:12.5]} 97... Kxf5 {[%clk 0:00:10.6]} 1/2-1/2

[Event "Early-Titled-Tuesday-Blitz-February-13-2024"]
[Site "Chess.com"]
[Date "2024.02.13"]
[Round "4"]
[White "temiksmozg"]
[Black "mbojan"]
[Result "1/2-1/2"]
[WhiteElo "2610"]
[BlackElo "2863"]
[TimeControl "180+1"]
[EndTime "8:45:54 PST"]
[Termination "Game drawn by repetition"]

1. e4 {[%clk 0:03:00.9]} 1... a6 {[%clk 0:03:00]} 2. d4 {[%clk 0:02:58.4]} 2...
e6 {[%clk 0:03:00.3]} 3. Nf3 {[%clk 0:02:56.7]} 3... d5 {[%clk 0:03:00.7]} 4.
Bd3 {[%clk 0:02:55.8]} 4... dxe4 {[%clk 0:03:00.8]} 5. Bxe4 {[%clk 0:02:56.3]}
5... Nf6 {[%clk 0:03:01.7]} 6. Bg5 {[%clk 0:02:55.1]} 6... Be7 {[%clk
0:02:59.7]} 7. Bd3 {[%clk 0:02:54.2]} 7... Nbd7 {[%clk 0:02:59.3]} 8. O-O {[%clk
0:02:52.9]} 8... c5 {[%clk 0:02:59.8]} 9. c3 {[%clk 0:02:46.6]} 9... O-O {[%clk
0:03:00]} 10. Nbd2 {[%clk 0:02:43.2]} 10... b5 {[%clk 0:03:00.2]} 11. a4 {[%clk
0:02:39.1]} 11... b4 {[%clk 0:03:00.4]} 12. Qe2 {[%clk 0:02:22.7]} 12... Bb7
{[%clk 0:03:00.4]} 13. Nc4 {[%clk 0:02:07.4]} 13... bxc3 {[%clk 0:02:54.4]} 14.
bxc3 {[%clk 0:02:05.6]} 14... cxd4 {[%clk 0:02:55.1]} 15. cxd4 {[%clk 0:02:00]}
15... Rc8 {[%clk 0:02:33.6]} 16. Nfe5 {[%clk 0:01:46.1]} 16... Nd5 {[%clk
0:01:55.6]} 17. Bd2 {[%clk 0:01:35.3]} 17... Nxe5 {[%clk 0:01:51.6]} 18. Nxe5
{[%clk 0:01:32.8]} 18... Nf6 {[%clk 0:01:42]} 19. Bxa6 {[%clk 0:01:20.5]} 19...
Bxa6 {[%clk 0:01:40.5]} 20. Qxa6 {[%clk 0:01:21]} 20... Qxd4 {[%clk 0:01:40.4]}
21. Nf3 {[%clk 0:01:21.2]} 21... Qg4 {[%clk 0:01:35.5]} 22. h3 {[%clk
0:01:14.9]} 22... Qf5 {[%clk 0:01:34.1]} 23. a5 {[%clk 0:01:10.7]} 23... Nd5
{[%clk 0:01:33.9]} 24. Qe2 {[%clk 0:00:53.8]} 24... Bf6 {[%clk 0:01:33.5]} 25.
Ra2 {[%clk 0:00:51.9]} 25... Rc2 {[%clk 0:01:31.4]} 26. Rxc2 {[%clk 0:00:40.9]}
26... Qxc2 {[%clk 0:01:32.3]} 27. Qb5 {[%clk 0:00:40.7]} 27... Qa2 {[%clk
0:01:02.1]} 28. Rc1 {[%clk 0:00:35.4]} 28... h6 {[%clk 0:01:01.8]} 29. Qb7
{[%clk 0:00:31.7]} 29... Kh7 {[%clk 0:00:46.2]} 30. Qb1+ {[%clk 0:00:30.9]}
30... Qxb1 {[%clk 0:00:45.6]} 31. Rxb1 {[%clk 0:00:31.8]} 31... Ra8 {[%clk
0:00:39.3]} 32. Rb7 {[%clk 0:00:30.2]} 32... Kg8 {[%clk 0:00:39.8]} 33. g4
{[%clk 0:00:12.6]} 33... Nc3 {[%clk 0:00:39.8]} 34. g5 {[%clk 0:00:09.2]} 34...
hxg5 {[%clk 0:00:38.4]} 35. Nxg5 {[%clk 0:00:10.1]} 35... Bxg5 {[%clk
0:00:10.6]} 36. Bxc3 {[%clk 0:00:09.9]} 36... Bd8 {[%clk 0:00:11.2]} 37. a6
{[%clk 0:00:09.4]} 37... Rxa6 {[%clk 0:00:02.2]} 38. Rb8 {[%clk 0:00:09.6]}
38... f6 {[%clk 0:00:02.9]} 39. Rxd8+ {[%clk 0:00:09.2]} 39... Kf7 {[%clk
0:00:03.8]} 40. Rd7+ {[%clk 0:00:09.6]} 40... Kg6 {[%clk 0:00:04.2]} 41. Bd2
{[%clk 0:00:08.6]} 41... Rc6 {[%clk 0:00:04]} 42. Be3 {[%clk 0:00:08.3]} 42...
Rc8 {[%clk 0:00:04.8]} 43. Kg2 {[%clk 0:00:08.6]} 43... Rc6 {[%clk 0:00:05]} 44.
Kf3 {[%clk 0:00:09]} 44... Rc4 {[%clk 0:00:04.2]} 45. Kg3 {[%clk 0:00:09.3]}
45... Ra4 {[%clk 0:00:04.3]} 46. Bf4 {[%clk 0:00:09.3]} 46... Ra5 {[%clk
0:00:04.3]} 47. Bd6 {[%clk 0:00:09.2]} 47... Rd5 {[%clk 0:00:04.7]} 48. Rd8
{[%clk 0:00:09.3]} 48... Kf7 {[%clk 0:00:05.3]} 49. Bc7 {[%clk 0:00:09.4]} 49...
Rc5 {[%clk 0:00:05.9]} 50. Bb6 {[%clk 0:00:09.4]} 50... Rc6 {[%clk 0:00:06.1]}
51. Rd7+ {[%clk 0:00:09.2]} 51... Kg6 {[%clk 0:00:06.3]} 52. Bd8 {[%clk
0:00:09.5]} 52... Rc3+ {[%clk 0:00:05.9]} 53. f3 {[%clk 0:00:08.8]} 53... Rc1
{[%clk 0:00:06.8]} 54. Be7 {[%clk 0:00:08.7]} 54... Rc8 {[%clk 0:00:06.1]} 55.
Rd8 {[%clk 0:00:07.4]} 55... Rc7 {[%clk 0:00:06.5]} 56. Bf8 {[%clk 0:00:07.8]}
56... Kf7 {[%clk 0:00:06.8]} 57. Bd6 {[%clk 0:00:07.9]} 57... Rc2 {[%clk
0:00:06.9]} 58. h4 {[%clk 0:00:08.3]} 58... Kg6 {[%clk 0:00:06.9]} 59. Rd7
{[%clk 0:00:08.5]} 59... Rd2 {[%clk 0:00:05.1]} 60. Rd8 {[%clk 0:00:04.1]} 60...
Rd5 {[%clk 0:00:05.7]} 61. Bc7 {[%clk 0:00:04]} 61... Rc5 {[%clk 0:00:06.2]} 62.
Bf4 {[%clk 0:00:04.1]} 62... Kf7 {[%clk 0:00:05.9]} 63. Rd7+ {[%clk 0:00:03.8]}
63... Kg6 {[%clk 0:00:06.5]} 64. h5+ {[%clk 0:00:04.2]} 64... Rxh5 {[%clk
0:00:06.2]} 65. Be3 {[%clk 0:00:04.2]} 65... Re5 {[%clk 0:00:06.4]} 66. Kf2
{[%clk 0:00:03.6]} 66... Rf5 {[%clk 0:00:06.2]} 67. Kg3 {[%clk 0:00:03.3]} 67...
Rb5 {[%clk 0:00:06.8]} 68. Kf2 {[%clk 0:00:03.3]} 68... e5 {[%clk 0:00:07.3]}
69. Kg3 {[%clk 0:00:03.6]} 69... Rb4 {[%clk 0:00:07.9]} 70. Kf2 {[%clk
0:00:03.5]} 70... Rb5 {[%clk 0:00:08.5]} 71. Kg3 {[%clk 0:00:03.9]} 71... Rb4
{[%clk 0:00:09]} 72. Kf2 {[%clk 0:00:04.4]} 72... Rb3 {[%clk 0:00:09.7]} 73. Bd2
{[%clk 0:00:04.2]} 73... Rb2 {[%clk 0:00:10.1]} 74. Kg3 {[%clk 0:00:04]} 74...
Rb8 {[%clk 0:00:10.9]} 75. Be3 {[%clk 0:00:04.4]} 75... Rc8 {[%clk 0:00:11.2]}
76. Bb6 {[%clk 0:00:04.5]} 76... Rc6 {[%clk 0:00:11.4]} 77. Bc7 {[%clk
0:00:04.3]} 77... Rc3 {[%clk 0:00:09.9]} 78. Kg2 {[%clk 0:00:03.8]} 78... Kh6
{[%clk 0:00:08.9]} 79. Bd6 {[%clk 0:00:03.5]} 79... Rd3 {[%clk 0:00:08.1]} 80.
Rd8 {[%clk 0:00:03.4]} 80... Kg6 {[%clk 0:00:08.3]} 81. Be7 {[%clk 0:00:03.7]}
81... Rb3 {[%clk 0:00:07.2]} 82. Rd7 {[%clk 0:00:03.8]} 82... Kf7 {[%clk
0:00:06.9]} 83. Bd6+ {[%clk 0:00:03.7]} 83... Kg8 {[%clk 0:00:07.4]} 84. Rd8+
{[%clk 0:00:03.7]} 84... Kh7 {[%clk 0:00:07.8]} 85. Rd7 {[%clk 0:00:04.6]} 85...
Kg8 {[%clk 0:00:07.9]} 86. Rd8+ {[%clk 0:00:04.9]} 86... Kf7 {[%clk 0:00:06.8]}
87. Rf8+ {[%clk 0:00:04.1]} 87... Ke6 {[%clk 0:00:06.7]} 88. Bb8 {[%clk
0:00:04.5]} 88... Rb2+ {[%clk 0:00:06.9]} 89. Kg3 {[%clk 0:00:04.6]} 89... Ke7
{[%clk 0:00:07.6]} 90. Rg8 {[%clk 0:00:04.1]} 90... Kf7 {[%clk 0:00:08.2]} 91.
Rc8 {[%clk 0:00:04.7]} 91... g5 {[%clk 0:00:08.6]} 92. Ba7 {[%clk 0:00:04.7]}
92... Rb7 {[%clk 0:00:07.8]} 93. Be3 {[%clk 0:00:04.9]} 93... Ke6 {[%clk
0:00:07.8]} 94. Rc6+ {[%clk 0:00:04.5]} 94... Kf5 {[%clk 0:00:07.5]} 95. Rc3
{[%clk 0:00:05]} 95... Rb4 {[%clk 0:00:07.6]} 96. Ra3 {[%clk 0:00:05.1]} 96...
Rc4 {[%clk 0:00:07.8]} 97. Rb3 {[%clk 0:00:04.8]} 97... Rc6 {[%clk 0:00:06.8]}
98. Ra3 {[%clk 0:00:05.1]} 98... Rc4 {[%clk 0:00:07.2]} 99. Rb3 {[%clk
0:00:05.4]} 99... Rc6 {[%clk 0:00:07.5]} 100. Ra3 {[%clk 0:00:05.8]} 100... Rd6
{[%clk 0:00:08]} 101. Rb3 {[%clk 0:00:06.1]} 101... Ra6 {[%clk 0:00:08.6]} 102.
Rc3 {[%clk 0:00:06.3]} 102... Ra4 {[%clk 0:00:06.5]} 103. Rb3 {[%clk 0:00:06.5]}
103... Rc4 {[%clk 0:00:06.6]} 104. Ra3 {[%clk 0:00:06.3]} 104... Rb4 {[%clk
0:00:07.2]} 105. Rc3 {[%clk 0:00:06.7]} 105... Rb7 {[%clk 0:00:07.4]} 106. Ra3
{[%clk 0:00:07.1]} 106... Rd7 {[%clk 0:00:07.7]} 107. Rb3 {[%clk 0:00:06.7]}
107... Rd6 {[%clk 0:00:08.1]} 108. Ra3 {[%clk 0:00:06.8]} 108... Rd5 {[%clk
0:00:08.4]} 109. Rb3 {[%clk 0:00:07.3]} 109... Rd1 {[%clk 0:00:08.9]} 110. Ra3
{[%clk 0:00:07.3]} 110... Rf1 {[%clk 0:00:09.3]} 111. Kg2 {[%clk 0:00:07.1]}
111... Rb1 {[%clk 0:00:10]} 112. Rc3 {[%clk 0:00:07.1]} 112... Rb2+ {[%clk
0:00:08.9]} 113. Kg3 {[%clk 0:00:06.8]} 113... Rb4 {[%clk 0:00:09.4]} 114. Ra3
{[%clk 0:00:06.9]} 114... Rc4 {[%clk 0:00:09.3]} 1/2-1/2

[Event "Early-Titled-Tuesday-Blitz-February-13-2024"]
[Site "Chess.com"]
[Date "2024.02.13"]
[Round "5"]
[White "starworld123"]
[Black "Kostya0705"]
[Result "1-0"]
[WhiteElo "2836"]
[BlackElo "2616"]
[TimeControl "180+1"]
[EndTime "8:55:36 PST"]
[Termination "starworld123 won by checkmate"]

1. Nf3 {[%clk 0:03:00.9]} 1... Nf6 {[%clk 0:02:58.7]} 2. b3 {[%clk 0:03:01.4]}
2... e6 {[%clk 0:02:39.6]} 3. Bb2 {[%clk 0:03:01.6]} 3... b5 {[%clk 0:02:39.6]}
4. e3 {[%clk 0:03:00]} 4... a6 {[%clk 0:02:39.6]} 5. c4 {[%clk 0:02:53.3]} 5...
bxc4 {[%clk 0:02:36.4]} 6. Bxc4 {[%clk 0:02:54.2]} 6... Bb7 {[%clk 0:02:36.6]}
7. O-O {[%clk 0:02:53.9]} 7... Be7 {[%clk 0:02:37.5]} 8. d4 {[%clk 0:02:52.4]}
8... O-O {[%clk 0:02:37.9]} 9. Qe2 {[%clk 0:02:52.3]} 9... c5 {[%clk 0:02:37.8]}
10. dxc5 {[%clk 0:02:46.9]} 10... Bxc5 {[%clk 0:02:38.7]} 11. Nc3 {[%clk
0:02:45.4]} 11... d5 {[%clk 0:02:38.2]} 12. Bd3 {[%clk 0:02:46]} 12... Nc6
{[%clk 0:02:37.4]} 13. Rac1 {[%clk 0:02:39.7]} 13... Qe7 {[%clk 0:02:33.2]} 14.
Bb1 {[%clk 0:02:28.4]} 14... e5 {[%clk 0:02:29.6]} 15. Nxd5 {[%clk 0:01:52]}
15... Nxd5 {[%clk 0:02:22.1]} 16. Qc2 {[%clk 0:01:52.3]} 16... e4 {[%clk
0:02:21.4]} 17. Qxe4 {[%clk 0:01:52.7]} 17... Nf6 {[%clk 0:02:17.5]} 18. Bxf6
{[%clk 0:01:51]} 18... Qxf6 {[%clk 0:02:04.8]} 19. Qxh7# {[%clk 0:01:51]} 1-0

[Event "Early-Titled-Tuesday-Blitz-February-13-2024"]
[Site "Chess.com"]
[Date "2024.02.13"]
[Round "5"]
[White "ajeale2"]
[Black "jero888"]
[Result "1-0"]
[WhiteElo "2470"]
[BlackElo "2267"]
[TimeControl "180+1"]
[EndTime "8:55:36 PST"]
[Termination "ajeale2 won by resignation"]

1. c4 {[%clk 0:03:00.9]} 1... c5 {[%clk 0:02:54.3]} 2. Nf3 {[%clk 0:03:01.1]}
2... g6 {[%clk 0:02:53.7]} 3. g3 {[%clk 0:03:01.4]} 3... Bg7 {[%clk 0:02:54.2]}
4. Bg2 {[%clk 0:03:02.1]} 4... Nc6 {[%clk 0:02:54.3]} 5. Nc3 {[%clk 0:03:02.7]}
5... d6 {[%clk 0:02:54]} 6. O-O {[%clk 0:03:03.2]} 6... e6 {[%clk 0:02:53.2]} 7.
Rb1 {[%clk 0:03:02.4]} 7... Nge7 {[%clk 0:02:53.8]} 8. a3 {[%clk 0:03:02.7]}
8... O-O {[%clk 0:02:54.2]} 9. b4 {[%clk 0:03:03.3]} 9... Rb8 {[%clk 0:02:47.1]}
10. b5 {[%clk 0:02:54.9]} 10... Nd4 {[%clk 0:02:37.8]} 11. e3 {[%clk 0:02:55.2]}
11... Nxf3+ {[%clk 0:02:35.4]} 12. Bxf3 {[%clk 0:02:56.1]} 12... d5 {[%clk
0:02:34.8]} 13. d4 {[%clk 0:02:32.2]} 13... cxd4 {[%clk 0:02:31]} 14. exd4
{[%clk 0:02:32.1]} 14... dxc4 {[%clk 0:02:31.4]} 15. Bf4 {[%clk 0:02:32]} 15...
Bd7 {[%clk 0:02:30.3]} 16. Bxb8 {[%clk 0:02:20.7]} 16... Qxb8 {[%clk 0:02:30.3]}
17. Ne4 {[%clk 0:02:16.2]} 17... Nd5 {[%clk 0:02:26.1]} 18. Qe2 {[%clk
0:01:53.5]} 18... b6 {[%clk 0:02:19.8]} 19. Rfc1 {[%clk 0:01:52.3]} 19... Bxd4
{[%clk 0:02:09]} 20. Rxc4 {[%clk 0:01:51.7]} 1-0

[Event "Early-Titled-Tuesday-Blitz-February-13-2024"]
[Site "Chess.com"]
[Date "2024.02.13"]
[Round "5"]
[White "kakarot_001"]
[Black "WhiteKnight2612"]
[Result "0-1"]
[WhiteElo "2646"]
[BlackElo "2874"]
[TimeControl "180+1"]
[EndTime "8:55:53 PST"]
[Termination "WhiteKnight2612 won by resignation"]

1. Nf3 {[%clk 0:03:00.9]} 1... Nf6 {[%clk 0:02:59.2]} 2. b3 {[%clk 0:03:00.7]}
2... g6 {[%clk 0:02:58.2]} 3. Bb2 {[%clk 0:03:01.4]} 3... Bg7 {[%clk 0:02:58.9]}
4. c4 {[%clk 0:02:59.3]} 4... O-O {[%clk 0:02:59.2]} 5. e3 {[%clk 0:02:58.6]}
5... c6 {[%clk 0:02:59.4]} 6. d4 {[%clk 0:02:58.9]} 6... d5 {[%clk 0:02:59.9]}
7. Nc3 {[%clk 0:02:58.7]} 7... Bf5 {[%clk 0:02:58.5]} 8. Bd3 {[%clk 0:02:57.1]}
8... Bxd3 {[%clk 0:02:57.8]} 9. Qxd3 {[%clk 0:02:58]} 9... Nbd7 {[%clk
0:02:57.8]} 10. O-O {[%clk 0:02:58.6]} 10... Re8 {[%clk 0:02:57.2]} 11. e4
{[%clk 0:02:58.7]} 11... dxe4 {[%clk 0:02:55.6]} 12. Nxe4 {[%clk 0:02:59.6]}
12... Qc7 {[%clk 0:02:49.3]} 13. Rfe1 {[%clk 0:02:55.5]} 13... Rad8 {[%clk
0:02:48.3]} 14. Nxf6+ {[%clk 0:02:53.6]} 14... Bxf6 {[%clk 0:02:49.2]} 15. Qe2
{[%clk 0:02:45.1]} 15... Nf8 {[%clk 0:02:47.1]} 16. Rad1 {[%clk 0:02:41.6]}
16... Ne6 {[%clk 0:02:37.1]} 17. d5 {[%clk 0:02:01.8]} 17... Nf4 {[%clk
0:02:35.1]} 18. Qd2 {[%clk 0:01:55.1]} 18... Bxb2 {[%clk 0:02:35.3]} 19. Qxb2
{[%clk 0:01:56]} 19... cxd5 {[%clk 0:02:35.4]} 20. cxd5 {[%clk 0:01:53.2]} 20...
Nxd5 {[%clk 0:02:30.2]} 21. Qd4 {[%clk 0:01:44.1]} 21... Nc3 {[%clk 0:02:25.4]}
0-1

[Event "Early-Titled-Tuesday-Blitz-February-13-2024"]
[Site "Chess.com"]
[Date "2024.02.13"]
[Round "5"]
[White "valorant64"]
[Black "kids2010"]
[Result "0-1"]
[WhiteElo "2612"]
[BlackElo "2831"]
[TimeControl "180+1"]
[EndTime "8:56:04 PST"]
[Termination "kids2010 won by resignation"]

1. e4 {[%clk 0:02:58.7]} 1... c6 {[%clk 0:02:34.5]} 2. d4 {[%clk 0:02:58]} 2...
d5 {[%clk 0:02:35.4]} 3. e5 {[%clk 0:02:58.3]} 3... Bf5 {[%clk 0:02:35.2]} 4.
Nd2 {[%clk 0:02:57.8]} 4... e6 {[%clk 0:02:35.3]} 5. Ngf3 {[%clk 0:02:55.9]}
5... Nd7 {[%clk 0:02:35.5]} 6. Nb3 {[%clk 0:02:55.7]} 6... Ne7 {[%clk
0:02:35.6]} 7. Bd3 {[%clk 0:02:54.4]} 7... Bxd3 {[%clk 0:02:35]} 8. Qxd3 {[%clk
0:02:54.8]} 8... Nf5 {[%clk 0:02:22]} 9. h4 {[%clk 0:02:52.2]} 9... c5 {[%clk
0:02:20.8]} 10. dxc5 {[%clk 0:02:51]} 10... Bxc5 {[%clk 0:02:19.5]} 11. g4
{[%clk 0:02:46.5]} 11... Ne7 {[%clk 0:02:19.2]} 12. Nxc5 {[%clk 0:02:40.1]}
12... Nxc5 {[%clk 0:02:20.1]} 13. Qb5+ {[%clk 0:02:40.4]} 13... Nd7 {[%clk
0:02:15.2]} 14. Qxb7 {[%clk 0:02:40.6]} 14... O-O {[%clk 0:02:04]} 15. Qa6
{[%clk 0:02:36.1]} 15... Ng6 {[%clk 0:01:46.9]} 16. Qd6 {[%clk 0:02:22.8]} 16...
Ndxe5 {[%clk 0:01:38.9]} 17. Qxd8 {[%clk 0:02:19.8]} 17... Nxf3+ {[%clk
0:01:38.4]} 18. Ke2 {[%clk 0:02:20.4]} 18... Nd4+ {[%clk 0:01:30.4]} 19. Kd3
{[%clk 0:02:20.5]} 19... Rfxd8 {[%clk 0:01:30.7]} 20. Kxd4 {[%clk 0:02:21]}
20... Rac8 {[%clk 0:01:27.1]} 21. Kd3 {[%clk 0:02:16.4]} 21... Ne5+ {[%clk
0:01:25.8]} 22. Kd2 {[%clk 0:02:16.8]} 22... Nxg4 {[%clk 0:01:25.3]} 23. f3
{[%clk 0:02:17.7]} 23... Ne5 {[%clk 0:01:24.6]} 0-1

[Event "Early-Titled-Tuesday-Blitz-February-13-2024"]
[Site "Chess.com"]
[Date "2024.02.13"]
[Round "5"]
[White "GM4life"]
[Black "SirGerhard"]
[Result "0-1"]
[WhiteElo "2563"]
[BlackElo "2805"]
[TimeControl "180+1"]
[EndTime "8:56:05 PST"]
[Termination "SirGerhard won by resignation"]

1. d4 {[%clk 0:03:00.9]} 1... Nf6 {[%clk 0:02:59.7]} 2. c4 {[%clk 0:03:00.7]}
2... e6 {[%clk 0:02:59.5]} 3. Nc3 {[%clk 0:03:00.6]} 3... Bb4 {[%clk 0:02:59.7]}
4. e3 {[%clk 0:03:00.9]} 4... O-O {[%clk 0:02:59.9]} 5. Bd3 {[%clk 0:03:01.6]}
5... d5 {[%clk 0:02:59.8]} 6. a3 {[%clk 0:03:02.2]} 6... Bxc3+ {[%clk
0:02:57.5]} 7. bxc3 {[%clk 0:03:03.1]} 7... c5 {[%clk 0:02:58]} 8. cxd5 {[%clk
0:03:03.1]} 8... exd5 {[%clk 0:02:54.6]} 9. Ne2 {[%clk 0:03:03.5]} 9... b6
{[%clk 0:02:54.7]} 10. O-O {[%clk 0:03:03.9]} 10... Ba6 {[%clk 0:02:55.1]} 11.
f3 {[%clk 0:03:04.3]} 11... Re8 {[%clk 0:02:52.7]} 12. Bxa6 {[%clk 0:03:04]}
12... Nxa6 {[%clk 0:02:52.6]} 13. Qd3 {[%clk 0:03:04.9]} 13... Nc7 {[%clk
0:02:47.6]} 14. Ng3 {[%clk 0:03:05.2]} 14... Ne6 {[%clk 0:02:45.7]} 15. Bb2
{[%clk 0:02:57.1]} 15... Rc8 {[%clk 0:02:45]} 16. Rae1 {[%clk 0:02:52.9]} 16...
cxd4 {[%clk 0:02:40.8]} 17. cxd4 {[%clk 0:02:52.6]} 17... Qc7 {[%clk 0:02:41.1]}
18. Rc1 {[%clk 0:02:48.3]} 18... Qd7 {[%clk 0:02:38.1]} 19. Qa6 {[%clk
0:02:47.1]} 19... g6 {[%clk 0:02:30.7]} 20. Rfd1 {[%clk 0:02:36.2]} 20... h5
{[%clk 0:02:25.2]} 21. Rxc8 {[%clk 0:02:24.6]} 21... Rxc8 {[%clk 0:02:23.5]} 22.
e4 {[%clk 0:02:18.6]} 22... Rc2 {[%clk 0:02:08.8]} 23. Ba1 {[%clk 0:02:06.4]}
23... Nf4 {[%clk 0:02:02.3]} 24. e5 {[%clk 0:01:50.7]} 24... Rxg2+ {[%clk
0:02:00.1]} 25. Kf1 {[%clk 0:01:43.8]} 25... Qh3 {[%clk 0:01:59.9]} 26. Qc8+
{[%clk 0:01:41.5]} 26... Qxc8 {[%clk 0:01:58.6]} 0-1